bitfinex/quotes_ETHUSD_20241203
["timestamp","ask_amount","ask_price","bid_price","bid_amount"]
[1733186363531,0.8218,3640.7,3640.2,2.7471]
[1733186363733,0.8218,3640.7,3640.3,2.74695]
[1733186363907,0.55,3640.6,3640.3,2.74695]
[1733186365198,0.55,3640.6,3639.8,2.99607181]
[1733186365397,0.55,3640.6,3640.1,2.74711]
[1733186367498,0.55,3640.6,3639.9,2.7473]
[1733186367715,0.55,3640.6,3640.0,2.74724]
[1733186368863,0.7896,3640.5,3639.2,0.766]
[1733186369148,0.55,3640.1,3639.0,2.748]
[1733186369352,0.55,3640.1,3639.2,2.7478]
[1733186369521,0.8212,3640.1,3639.2,2.7478]
[1733186369928,0.55,3640.0,3639.1,0.92061429]
[1733186370134,0.55,3639.8,3639.1,0.92061429]
[1733186370338,0.55,3639.8,3639.1,2.74792]
[1733186370540,0.55,3639.6,3638.9,2.74804]
[1733186370764,0.55,3639.6,3638.5,5.40009892]
[1733186370765,0.55,3639.4,3638.5,2.65172892]
[1733186370926,0.55,3639.2,3638.5,2.65172892]
[1733186371128,0.55,3639.2,3638.5,5.40009892]
[1733186371662,0.55,3639.2,3638.1,5.40039892]
[1733186371663,0.55,3639.0,3638.1,5.40039892]
[1733186371839,0.55,3639.0,3638.2,2.74861]
[1733186372250,0.55,3639.0,3638.1,3.19176881]
[1733186372436,3.29806,3639.0,3638.1,0.54003989]
[1733186372624,3.29806,3639.0,3638.0,2.74873]
[1733186373260,0.55,3639.0,3637.8,0.54793315]
[1733186373423,0.55,3639.0,3638.0,2.74876]
[1733186374031,0.55,3639.0,3637.8,0.54793315]
[1733186374266,0.7626,3638.7,3637.8,0.54793315]
[1733186374563,0.55,3638.6,3638.0,2.74869]
[1733186375067,0.55,3638.6,3637.9,0.40218621]
[1733186375368,0.55,3638.6,3637.7,5.40068892]
[1733186376062,0.55,3638.6,3637.7,2.65172892]
[1733186376262,0.55,3638.6,3637.8,2.74891]
[1733186376635,0.55,3638.6,3637.9,2.74881]
[1733186376839,0.55,3638.6,3637.7,2.65172892]
[1733186377065,0.55,3638.6,3637.9,2.74878]
[1733186378376,0.55,3638.6,3638.0,2.74873]
[1733186380041,0.55,3638.6,3638.1,5.40033892]
[1733186380253,0.55,3638.6,3638.2,2.74859]
[1733186380454,0.55,3638.6,3638.3,2.74853]
[1733186381294,0.55,3638.6,3638.2,2.7486]
[1733186381991,0.55,3638.6,3638.3,2.74853]
[1733186383058,0.55,3638.6,3638.1,2.65172892]
[1733186383283,0.55,3638.6,3638.1,5.40037892]
[1733186383600,0.55,3638.6,3637.7,2.65172892]
[1733186383764,0.55,3638.4,3637.7,2.65172892]
[1733186384162,0.55,3638.4,3637.8,2.74889]
[1733186384564,0.55,3638.4,3637.7,2.65172892]
[1733186384766,0.55,3638.4,3637.7,5.40070892]
[1733186384979,0.55,3638.4,3637.8,2.74885]
[1733186385190,0.55,3638.4,3637.8,0.54005789]
[1733186385506,0.55,3638.4,3638.2,2.74858]
[1733186385666,0.55,3638.4,3637.7,2.65172892]
[1733186385667,0.55,3638.4,3638.0,2.74875]
[1733186387068,0.55,3638.4,3638.1,5.40039892]
[1733186387282,0.55,3638.4,3638.1,2.65172892]
[1733186387464,0.7896,3639.0,3638.1,0.26517289]
[1733186387668,0.7896,3639.0,3637.7,2.65172892]
[1733186388202,0.8219,3638.9,3637.9,2.74877]
[1733186388585,0.55,3638.8,3638.0,2.74871]
[1733186389468,0.55,3638.6,3637.7,2.65172892]
[1733186389698,0.55,3638.6,3637.9,2.7488]
[1733186390479,0.55,3638.6,3637.9,3.05953876]
[1733186390872,0.55,3638.6,3637.9,0.31073876]
[1733186391107,0.55,3638.4,3637.7,2.65172892]
[1733186391904,0.55,3638.4,3637.6,2.74905]
[1733186392110,0.55,3638.4,3637.4,0.56142511]
[1733186392111,0.55,3638.4,3637.7,2.74897]
[1733186392415,0.55,3638.4,3637.5,2.74911]
[1733186392800,0.8054,3638.3,3637.5,2.74911]
[1733186393037,0.8054,3638.3,3637.3,3.21403932]
[1733186393038,0.55,3638.2,3637.3,5.96330932]
[1733186393337,0.55,3638.2,3637.5,2.74913]
[1733186393526,0.55,3638.2,3637.3,6.55963025]
[1733186393895,1.14429959,3639.0,3636.9,2.65172892]
[1733186393896,0.7691,3637.9,3636.9,2.65172892]
[1733186394099,0.55,3637.6,3636.6,0.5388235]
[1733186394336,0.7691,3637.5,3636.6,0.5388235]
[1733186394544,0.55,3637.4,3636.7,0.31905524]
[1733186394710,0.55,3637.4,3636.5,2.65172892]
[1733186395042,0.55,3637.4,3635.2,2.75087]
[1733186395043,0.7691,3637.6,3636.3,2.75002]
[1733186395225,0.7691,3637.3,3636.3,2.75002]
[1733186395536,2.74894,3637.8,3635.8,0.8019]
[1733186395537,0.7691,3636.9,3635.8,2.65172892]
[1733186395711,0.55,3636.8,3635.8,2.65172892]
[1733186395915,0.55,3636.8,3635.9,3.07060034]
[1733186396153,0.55,3636.8,3636.0,2.75023]
[1733186397643,0.55,3636.8,3635.9,0.32032034]
[1733186397848,0.55,3636.8,3636.1,2.75016]
[1733186398444,0.55,3636.8,3636.2,2.75008]
[1733186399014,0.55,3636.8,3636.2,2.75007]
[1733186399213,0.55,3636.8,3636.3,2.75001]
[1733186399422,0.55,3636.8,3636.4,2.7499]
[1733186399606,0.55,3636.8,3636.4,2.74993]
[1733186400111,0.55,3636.8,3636.5,2.74983]
[1733186400663,0.55,3636.8,3636.6,2.74979]
[1733186401346,0.55,3636.8,3636.2,2.95876795]
[1733186401522,0.55,3636.8,3636.6,2.74977]
[1733186401721,0.55,3636.8,3636.7,2.74974]
[1733186402448,0.8089,3637.6,3636.8,2.74967]
[1733186402650,0.8089,3637.6,3637.0,2.74945]
[1733186402824,0.8089,3637.6,3637.1,2.7494]
[1733186403021,0.8089,3637.6,3637.3,2.74925]
[1733186403224,0.8089,3637.6,3637.1,2.74942]
[1733186403418,0.8089,3637.6,3636.6,2.65172892]
[1733186403668,1.3016,3637.3,3636.3,2.75004]
[1733186403841,0.55,3637.1,3636.4,2.74995]
[1733186404161,0.55,3636.9,3636.4,2.74995]
[1733186404660,0.55,3636.9,3636.2,5.40181892]
[1733186404863,0.55,3636.9,3636.2,6.21702881]
[1733186405462,1.3678,3637.1,3636.2,2.75009]
[1733186405664,0.2,3637.8,3636.4,2.74996]
[1733186405665,0.55,3636.9,3636.4,2.74996]
[1733186405967,0.55,3636.9,3636.0,2.75027]
[1733186406643,0.55,3636.5,3635.7,2.75049]
[1733186406848,0.55,3636.5,3635.2,2.65172892]
[1733186407065,0.55,3636.3,3635.6,2.75056]
[1733186407560,0.55,3636.3,3635.8,2.7504]
[1733186408136,0.55,3636.3,3635.6,2.75056]
[1733186409081,0.55,3636.3,3635.7,2.75046]
[1733186409263,0.55,3636.3,3636.0,2.7502]
[1733186409474,0.55,3636.3,3635.6,2.65172892]
[1733186409770,0.55,3636.3,3635.8,2.7504]
[1733186411384,0.55,3636.3,3635.6,5.6939891]
[1733186412143,0.55,3636.3,3635.6,2.9434191]
[1733186412436,0.55,3636.3,3635.9,2.75034]
[1733186412987,0.7668,3637.2,3636.0,2.65172892]
[1733186413142,0.7668,3637.2,3636.5,2.65172892]
[1733186413516,0.7668,3637.2,3636.8,2.74961]
[1733186413774,0.7668,3637.2,3636.5,3.41702892]
[1733186413775,0.7668,3637.2,3636.5,2.65172892]
[1733186413955,0.7668,3637.2,3636.7,2.74972]
[1733186414377,0.7668,3637.2,3636.8,2.74965]
[1733186414674,0.55,3637.1,3636.8,2.74965]
[1733186414851,0.55,3637.1,3636.1,0.26517289]
[1733186415057,0.55,3636.9,3636.2,2.75008]
[1733186415361,0.55,3636.9,3635.8,2.65172892]
[1733186415678,0.55,3636.9,3635.9,0.37074191]
[1733186415982,0.55,3636.9,3636.0,2.75025]
[1733186416201,0.55,3636.9,3636.2,2.75011]
[1733186417589,0.55,3636.9,3636.3,2.75003]
[1733186418007,0.55,3636.9,3636.1,2.75017]
[1733186418650,0.55,3636.9,3636.2,2.75011]
[1733186419450,0.7989,3637.0,3635.6,0.29169018]
[1733186419451,0.55,3636.6,3635.6,0.29169018]
[1733186419652,0.55,3636.4,3635.7,2.75048]
[1733186419985,0.55,3636.4,3635.4,2.65172892]
[1733186420188,0.55,3636.4,3636.0,2.75026]
[1733186420488,0.55,3636.4,3635.5,2.75065]
[1733186420788,0.55,3636.4,3635.9,2.75035]
[1733186421207,0.55,3636.4,3636.0,2.75022]
[1733186421496,0.55,3636.4,3636.2,2.75008]
[1733186421653,0.7866,3636.5,3636.2,2.75008]
[1733186421856,0.55,3636.4,3636.2,2.75008]
[1733186422487,0.55,3636.4,3636.3,2.75004]
[1733186422811,1.36206558,3636.8,3636.3,0.275004]
[1733186422980,0.25529881,3636.7,3636.5,2.74983]
[1733186423175,0.7511,3636.8,3636.5,2.74983]
[1733186423375,0.25549404,3636.7,3636.5,2.74983]
[1733186423571,0.7511,3636.8,3636.3,0.275004]
[1733186423772,0.25548247,3636.7,3636.2,2.65172892]
[1733186423969,0.8056,3636.4,3635.4,2.92662892]
[1733186424176,0.55,3636.1,3635.3,2.75077]
[1733186424377,0.55,3635.9,3635.3,2.75077]
[1733186424603,0.25547955,3635.8,3635.3,2.75077]
[1733186424920,0.55,3635.7,3635.3,2.75075]
[1733186425215,0.55,3635.9,3635.3,2.75075]
[1733186425383,0.55,3635.9,3635.0,2.65172892]
[1733186425384,0.25556657,3635.8,3635.4,2.75072]
[1733186425573,0.55,3635.7,3635.0,2.65172892]
[1733186425773,0.20446315,3635.9,3635.1,0.61866989]
[1733186426017,1.01004073,3635.8,3635.1,0.61866989]
[1733186426212,0.55,3635.6,3635.1,0.61866989]
[1733186426711,0.55,3635.9,3635.4,2.75066]
[1733186426885,0.55,3635.7,3635.4,2.75066]
[1733186427212,0.55,3636.0,3635.1,0.61866989]
[1733186427510,0.55,3636.0,3635.2,0.60213588]
[1733186427672,0.55,3636.0,3635.4,2.65172892]
[1733186427877,0.55,3636.0,3635.5,2.75058]
[1733186428073,0.55,3636.1,3635.5,2.75058]
[1733186428387,0.55,3636.1,3635.4,2.67923286]
[1733186428589,0.55,3636.1,3635.5,0.60322087]
[1733186429480,0.55,3636.1,3635.7,2.75048]
[1733186429720,0.55,3636.1,3635.5,0.60322087]
[1733186430498,0.55,3636.1,3635.7,2.75049]
[1733186431198,0.55,3636.1,3635.5,0.60322087]
[1733186431419,0.55,3636.1,3635.8,2.75042]
[1733186431618,0.55,3636.1,3635.6,0.60056298]
[1733186431894,0.8056,3636.2,3635.9,2.65172892]
[1733186432103,0.8056,3636.2,3635.7,2.7505]
[1733186432450,0.8056,3636.2,3635.6,3.35110298]
[1733186432597,0.8056,3636.2,3636.1,2.75019]
[1733186433699,0.55,3636.7,3635.9,2.65172892]
[1733186434083,0.55,3636.7,3636.2,2.7501]
[1733186434084,0.55,3636.5,3636.2,2.7501]
[1733186434226,0.55,3636.5,3635.9,5.40207892]
[1733186434429,0.75455762,3636.7,3636.3,2.75]
[1733186434743,0.55,3636.7,3636.3,2.75]
[1733186435044,0.55,3636.5,3636.3,2.75]
[1733186435215,0.55,3636.7,3636.3,2.75]
[1733186436134,0.55,3636.7,3636.2,2.75012]
[1733186436334,0.55,3636.7,3635.9,2.65172892]
[1733186436565,0.55,3636.7,3636.6,2.74982]
[1733186436842,0.98818553,3637.1,3636.5,2.74987]
[1733186437023,0.25573272,3637.0,3636.5,2.74987]
[1733186437212,0.7836,3637.1,3636.5,2.74987]
[1733186437534,0.25571833,3637.0,3636.5,2.74987]
[1733186437702,0.7836,3637.1,3636.5,2.74987]
[1733186437904,0.55,3636.9,3636.5,2.74987]
[1733186438103,0.55,3637.0,3636.5,2.74987]
[1733186438496,0.25569223,3636.9,3636.5,2.74987]
[1733186438701,0.55,3637.0,3636.5,2.74987]
[1733186439321,0.55,3637.0,3636.3,5.40174892]
[1733186439322,0.7545488,3637.0,3636.3,5.40174892]
[1733186439520,0.7545488,3637.0,3635.9,2.75034]
[1733186439521,1.3237,3636.8,3636.1,2.75017]
[1733186439728,0.55,3636.6,3636.1,2.75013]
[1733186440007,0.25567407,3636.5,3636.1,2.75013]
[1733186440207,0.817,3636.3,3635.7,0.04076564]
[1733186440444,0.55,3636.2,3635.7,0.04076564]
[1733186441869,0.55,3636.2,3635.7,2.79124564]
[1733186443323,0.55,3636.2,3635.8,2.75042]
[1733186443745,0.55,3636.2,3635.9,2.75033]
[1733186444258,0.2045741,3636.6,3635.9,2.93358892]
[1733186444461,0.8046,3636.7,3636.0,2.75026]
[1733186444622,0.8046,3636.7,3635.9,2.93358892]
[1733186444952,0.25576045,3636.6,3636.1,2.75017]
[1733186445162,0.8046,3636.7,3636.1,2.75017]
[1733186445345,0.25578625,3636.6,3636.1,2.75017]
[1733186445535,0.8046,3636.7,3636.1,0.56837589]
[1733186445848,0.8046,3636.7,3636.3,2.75002]
[1733186446164,0.8046,3636.7,3636.1,2.75018]
[1733186446473,0.8046,3636.7,3635.9,2.65172892]
[1733186446762,1.01044175,3636.6,3635.9,2.65172892]
[1733186446931,0.55,3636.6,3636.0,2.75026]
[1733186448172,0.55,3636.6,3636.1,2.75013]
[1733186448459,0.55,3636.6,3636.0,2.75026]
[1733186449354,0.55,3636.6,3635.9,2.65172892]
[1733186449355,0.6477996,3636.5,3635.9,2.65172892]
[1733186449557,0.39199059,3636.5,3635.8,2.7504]
[1733186449757,0.55,3636.6,3635.9,2.75034]
[1733186449956,2.35819111,3636.7,3635.9,2.65172892]
[1733186449957,1.94889959,3636.7,3635.9,2.65172892]
[1733186450200,0.8046,3636.7,3636.4,2.74993]
[1733186451407,1.08411627,3637.0,3636.3,2.65172892]
[1733186451704,1.08411627,3637.0,3636.6,2.74982]
[1733186451705,0.8283,3637.0,3636.6,2.74982]
[1733186454000,0.8283,3637.0,3636.7,2.65172892]
[1733186454205,0.8283,3637.0,3636.9,2.74959]
[1733186454374,0.801,3637.3,3637.0,2.74951]
[1733186454569,0.801,3637.3,3636.7,2.65172892]
[1733186454876,1.01046435,3637.2,3636.3,2.65172892]
[1733186455071,0.55,3637.2,3636.3,2.65172892]
[1733186455271,0.55,3637.0,3636.3,2.65172892]
[1733186455497,0.55,3636.8,3635.9,2.65172892]
[1733186455695,0.767,3636.5,3635.9,2.65172892]
[1733186456115,0.767,3636.5,3635.8,2.75036]
[1733186456674,0.767,3636.5,3635.7,0.04076564]
[1733186456675,0.75466193,3636.4,3635.7,0.04076564]
[1733186457014,0.55,3636.2,3635.7,0.04076564]
[1733186457775,0.7874,3636.1,3635.7,0.04076564]
[1733186459521,0.55,3636.0,3635.7,0.04076564]
[1733186459814,0.20475186,3635.9,3635.7,0.04076564]
[1733186460117,0.55,3636.0,3635.7,0.04076564]
[1733186460272,0.64633936,3635.9,3635.7,0.04076564]
[1733186460481,0.44152532,3635.9,3635.7,0.04076564]
[1733186461419,0.7608,3635.8,3635.7,0.04076564]
[1733186461718,0.96560156,3635.8,3635.7,0.04076564]
[1733186462507,0.7608,3635.8,3635.7,0.04076564]
[1733186463719,0.8236,3636.1,3635.7,0.04076564]
[1733186463931,1.23327536,3636.4,3636.0,5.40199892]
[1733186464179,0.20488641,3636.3,3636.1,2.75018]
[1733186464301,0.32785807,3636.6,3636.1,2.75018]
[1733186464501,0.46104516,3636.5,3636.1,2.75018]
[1733186464692,0.20490916,3636.4,3636.1,2.75018]
[1733186464891,0.8236,3636.7,3636.1,3.29037089]
[1733186465104,0.46106086,3636.6,3636.1,3.29037089]
[1733186465396,0.55,3636.6,3636.1,3.29037089]
[1733186465612,0.20492134,3636.5,3636.1,3.29037089]
[1733186465815,1.75102535,3636.8,3636.1,0.54019089]
[1733186466013,2.32937331,3637.1,3636.6,2.74975]
[1733186466326,0.46108636,3637.0,3636.6,2.74975]
[1733186466484,0.7722,3637.1,3636.6,2.74975]
[1733186466831,0.46107875,3637.0,3636.4,2.65172892]
[1733186467122,1.42323943,3637.2,3636.8,2.65172892]
[1733186467331,0.46107243,3637.1,3636.8,2.65172892]
[1733186467618,0.7725,3637.3,3636.8,2.65172892]
[1733186467823,1.40979669,3637.2,3636.8,2.65172892]
[1733186468127,2.52345673,3637.3,3636.8,2.65172892]
[1733186468128,0.46107348,3637.1,3636.8,2.65172892]
[1733186468283,0.20491995,3637.0,3636.8,2.65172892]
[1733186468489,2.52317024,3637.3,3636.8,2.65172892]
[1733186468826,0.46100954,3637.2,3636.8,2.65172892]
[1733186469027,1.01100954,3637.1,3636.4,5.40163892]
[1733186469212,0.46100954,3637.0,3636.6,2.74982]
[1733186469413,0.55,3637.1,3636.6,2.74982]
[1733186469594,0.46099161,3637.0,3636.6,2.74982]
[1733186469793,0.55,3637.1,3636.6,2.74982]
[1733186469994,0.20488458,3637.0,3636.4,5.40168892]
[1733186470242,0.55,3637.1,3636.4,5.40168892]
[1733186470536,0.46096014,3637.0,3636.4,5.40167892]
[1733186470733,0.46096014,3636.9,3636.4,5.40167892]
[1733186470902,0.55,3637.1,3636.4,2.65172892]
[1733186471105,0.46097341,3637.0,3636.7,2.74967]
[1733186471310,0.55,3637.2,3636.5,2.74986]
[1733186471516,0.55,3637.0,3636.7,2.74972]
[1733186471914,0.55,3637.2,3636.5,2.74986]
[1733186472213,0.55,3637.0,3636.6,2.74981]
[1733186472395,0.55,3637.2,3636.6,2.74981]
[1733186472600,0.55,3637.0,3636.6,2.74981]
[1733186473111,0.55,3637.2,3636.6,2.74981]
[1733186473306,0.55,3637.0,3636.4,2.67922575]
[1733186473711,0.55,3637.2,3636.7,2.74973]
[1733186473909,0.55,3637.0,3636.7,2.74973]
[1733186474339,0.80610293,3637.2,3636.7,2.74973]
[1733186474538,0.20488382,3637.1,3636.8,2.65172892]
[1733186474837,0.7725,3637.3,3636.8,2.65172892]
[1733186475048,0.46101753,3637.2,3636.8,2.65172892]
[1733186475212,0.20489668,3637.1,3636.9,2.74959]
[1733186475423,2.91387156,3637.6,3636.8,2.65172892]
[1733186475424,0.25610951,3637.3,3636.8,2.65172892]
[1733186475609,1.93040047,3637.6,3637.4,2.74919]
[1733186475825,0.46101516,3637.5,3637.4,2.74919]
[1733186476116,1.91580047,3637.9,3637.4,2.74919]
[1733186476446,1.40988129,3637.8,3637.4,2.74919]
[1733186476731,0.46092816,3637.7,3637.4,2.74919]
[1733186476937,3.33890527,3637.9,3637.4,2.74919]
[1733186477131,0.20483789,3637.6,3637.4,2.74919]
[1733186477338,0.55,3637.8,3637.4,2.74919]
[1733186477513,0.204802,3637.7,3637.4,2.74919]
[1733186477715,0.55,3637.8,3637.4,2.74919]
[1733186477910,0.20480577,3637.7,3637.4,2.74919]
[1733186478232,0.55,3637.8,3637.4,2.74919]
[1733186478433,0.20477923,3637.7,3637.4,2.74919]
[1733186478638,0.20477923,3637.7,3637.2,2.65172892]
[1733186478639,0.55,3637.8,3636.9,2.74953]
[1733186478844,0.55,3637.6,3637.0,2.74944]
[1733186479134,1.40932519,3637.7,3636.8,0.7674]
[1733186479135,1.9147025,3637.8,3636.8,3.51705]
[1733186479352,0.55,3637.5,3636.7,2.65172892]
[1733186479562,0.8192,3637.6,3636.3,2.74998]
[1733186479563,0.55,3637.3,3636.3,2.65172892]
[1733186479716,0.55,3637.1,3636.4,2.74989]
[1733186479911,0.55,3637.1,3636.5,2.74989]
[1733186480218,0.55,3637.1,3636.3,2.65172892]
[1733186480219,0.20473569,3637.0,3636.3,5.40174892]
[1733186480554,3.11998142,3637.2,3636.4,2.74996]
[1733186480756,0.55,3637.0,3636.3,2.65172892]
[1733186480931,0.55,3637.0,3636.6,2.74981]
[1733186481126,0.80592108,3637.1,3636.6,2.74981]
[1733186481439,0.20473657,3637.0,3636.6,2.74981]
[1733186481751,0.55,3637.1,3636.6,2.74981]
[1733186481953,0.20473466,3637.0,3636.6,2.74981]
[1733186482154,2.56998142,3637.3,3636.6,3.25954051]
[1733186482361,0.20474444,3637.2,3636.9,2.65172892]
[1733186482559,1.22868889,3637.6,3637.2,2.74935]
[1733186482560,0.20474444,3637.4,3637.2,2.74935]
[1733186482744,0.8192,3637.6,3637.2,2.74935]
[1733186482927,0.20476441,3637.5,3637.2,2.74935]
[1733186483118,0.8192,3637.6,3637.2,2.74935]
[1733186483357,0.20474639,3637.5,3636.9,2.74953]
[1733186483663,0.20474639,3637.5,3636.5,2.65172892]
[1733186483664,0.55,3637.3,3636.5,2.65172892]
[1733186483960,0.55,3637.1,3636.5,2.65172892]
[1733186484115,0.55,3636.9,3636.5,2.65172892]
[1733186484518,0.75476,3637.1,3636.5,2.65172892]
[1733186484720,0.55,3637.2,3636.5,2.65172892]
[1733186484942,0.55,3637.4,3636.6,2.74982]
[1733186485257,0.55,3637.2,3636.6,2.74982]
[1733186485618,0.55,3637.3,3636.5,3.05603076]
[1733186485913,0.20477084,3637.2,3636.5,3.05603076]
[1733186486117,0.55,3637.1,3636.5,3.05603076]
[1733186486314,0.55,3637.3,3636.6,0.66328608]
[1733186486533,0.55,3637.1,3636.7,2.74971]
[1733186486962,0.55,3637.4,3636.7,2.74971]
[1733186487160,0.55,3637.2,3636.7,2.74971]
[1733186487660,0.80598383,3637.4,3636.7,2.74971]
[1733186487822,0.55,3637.2,3636.7,2.74971]
[1733186488017,0.55,3637.2,3636.6,0.66328608]
[1733186488221,0.55,3637.3,3636.5,3.05603076]
[1733186488467,0.55,3637.1,3636.5,2.65172892]
[1733186488775,0.55,3636.9,3636.5,2.65172892]
[1733186488968,0.55,3636.9,3636.1,2.65172892]
[1733186489261,3.29965,3636.9,3635.9,2.75034]
[1733186489470,0.8254,3636.7,3635.7,2.79125564]
[1733186489627,0.7548529,3636.6,3635.7,5.44298456]
[1733186489828,1.237912,3636.7,3635.7,5.44298456]
[1733186489829,0.55,3636.3,3635.7,2.69249456]
[1733186490064,0.55,3636.1,3635.7,2.69249456]
[1733186490229,0.55,3636.1,3635.7,0.04076564]
[1733186491128,2.75029,3636.0,3635.7,0.04076564]
[1733186491329,1.3373,3635.8,3635.7,0.04076564]
[1733186491577,1.54205967,3635.8,3635.7,0.04076564]
[1733186491727,2.74606098,3635.8,3635.7,0.04076564]
[1733186492070,2.74607611,3635.8,3635.7,0.04076564]
[1733186492274,1.79799465,3635.8,3635.7,0.04076564]
[1733186492771,1.54205967,3635.8,3635.7,0.04076564]
[1733186492942,1.3373,3635.8,3635.7,0.04076564]
[1733186493344,0.7873,3635.8,3635.7,0.04076564]
[1733186493666,0.55,3635.9,3635.7,0.04076564]
[1733186493875,0.55,3636.0,3635.7,0.04076564]
[1733186494266,0.55,3636.0,3635.6,2.65172892]
[1733186494466,0.55,3636.0,3635.6,3.10368862]
[1733186495200,0.7664,3636.1,3635.7,2.75043]
[1733186497256,0.7664,3636.1,3635.6,3.10368862]
[1733186497461,0.7841,3636.4,3635.8,2.75041]
[1733186497793,0.55,3636.3,3635.8,2.75041]
[1733186498033,0.55,3636.3,3635.8,3.33581986]
[1733186498191,0.55,3636.3,3635.8,0.58540986]
[1733186498559,0.55,3636.3,3635.8,3.33580986]
[1733186498756,0.55,3636.3,3635.8,0.58540986]
[1733186498968,0.20457719,3636.6,3636.1,2.65172892]
[1733186499327,0.7916,3636.7,3636.2,0.26517289]
[1733186500261,0.7916,3636.7,3636.3,2.74997]
[1733186500657,0.7916,3636.7,3636.3,2.75004]
[1733186500859,0.7916,3636.7,3636.2,0.26517289]
[1733186501215,0.7916,3636.7,3635.7,2.75043]
[1733186501216,0.55,3636.6,3635.7,2.65172892]
[1733186501666,0.55,3636.4,3635.7,2.65172892]
[1733186501995,0.55,3636.6,3635.8,2.75035]
[1733186502198,0.55,3636.4,3635.8,2.75035]
[1733186502362,0.55,3636.4,3635.8,3.29055789]
[1733186502561,0.55,3636.6,3635.8,0.54020789]
[1733186502756,0.55,3636.6,3636.0,2.7502]
[1733186503162,0.55,3636.6,3635.7,2.65172892]
[1733186503409,0.55,3636.6,3635.9,2.75032]
[1733186503697,0.75459835,3636.6,3635.9,2.75032]
[1733186503900,0.55,3636.6,3635.9,2.75032]
[1733186504662,0.55,3636.6,3635.7,2.65172892]
[1733186504974,0.55,3636.6,3635.8,0.26517289]
[1733186505305,0.55,3636.6,3635.8,2.75042]
[1733186506892,0.55,3636.6,3634.5,2.75135]
[1733186506893,0.7776,3635.5,3634.5,2.75135]
[1733186507218,5.40167892,3636.5,3634.3,0.2749]
[1733186507219,0.7776,3635.3,3634.3,0.2749]
[1733186507418,2.75031,3636.0,3634.0,2.65172892]
[1733186507419,0.55,3635.0,3634.1,2.75171]
[1733186507629,0.55,3635.0,3634.0,2.65172892]
[1733186507630,0.55,3635.0,3634.2,0.62184389]
[1733186508335,0.5474994,3634.8,3634.2,0.62184389]
[1733186508538,0.20453624,3635.0,3634.2,0.62184389]
[1733186508829,1.03315241,3635.1,3634.2,0.62184389]
[1733186509137,1.14740047,3635.4,3634.0,2.65172892]
[1733186509138,3.50731,3634.9,3634.0,2.65172892]
[1733186509429,0.7562,3634.8,3633.6,2.65172892]
[1733186509639,2.75134,3634.6,3633.6,2.65172892]
[1733186509932,0.7562,3634.7,3633.7,2.75201]
[1733186510239,0.7562,3634.7,3634.1,2.75171]
[1733186510395,0.55,3634.6,3634.1,2.75171]
[1733186510820,0.55,3634.6,3634.2,2.75159]
[1733186511034,0.55,3634.6,3634.0,3.45992892]
[1733186511243,0.55,3634.6,3634.1,0.62118189]
[1733186511538,0.55,3634.6,3634.3,2.75154]
[1733186512330,0.55,3634.6,3634.4,2.75148]
[1733186512549,0.8211,3635.2,3634.4,2.65172892]
[1733186512834,0.8211,3635.2,3634.8,2.75115]
[1733186513349,0.8211,3635.2,3634.6,2.75132]
[1733186513724,0.55,3635.1,3634.5,3.29172589]
[1733186514540,0.55,3635.1,3634.8,2.75118]
[1733186514752,0.55,3635.1,3634.8,3.08033159]
[1733186514935,0.55,3635.1,3634.8,0.32915159]
[1733186515135,0.55,3635.1,3634.6,2.75131]
[1733186516151,0.55,3635.1,3634.4,2.65172892]
[1733186516351,0.55,3635.1,3634.2,2.75161]
[1733186517055,0.82,3635.0,3634.2,2.75161]
[1733186517355,0.55,3634.9,3634.2,2.75161]
[1733186517957,0.55,3634.9,3634.0,5.40350892]
[1733186518254,0.80520505,3634.9,3634.0,6.07511411]
[1733186518457,0.55,3634.6,3634.0,0.67160519]
[1733186518614,0.55,3634.6,3633.9,2.75184]
[1733186518814,0.55,3634.6,3633.7,0.7728]
[1733186519153,0.55,3634.6,3633.7,2.75194]
[1733186519521,0.55,3634.6,3633.6,3.00408292]
[1733186520347,0.55,3634.6,3634.0,2.75178]
[1733186520553,0.55,3634.6,3633.8,2.75191]
[1733186520760,0.55,3634.6,3634.0,2.65172892]
[1733186520923,0.55,3634.6,3634.1,2.7517]
[1733186521359,0.55,3634.6,3634.2,2.75161]
[1733186521763,0.55,3634.6,3634.0,2.65172892]
[1733186522058,0.55,3634.6,3633.7,2.75196]
[1733186522059,0.55,3634.6,3633.6,3.56377526]
[1733186522236,0.55,3634.6,3633.8,2.75192]
[1733186522434,0.55,3634.6,3634.0,2.75172]
[1733186522622,0.55,3634.6,3634.1,2.7517]
[1733186523046,0.55,3634.6,3634.2,2.75161]
[1733186523223,0.55,3634.6,3634.0,5.40348892]
[1733186523433,0.55,3634.6,3634.0,5.84716433]
[1733186523858,0.50923436,3634.6,3634.0,3.09540433]
[1733186524059,0.50923436,3634.6,3633.7,0.71016953]
[1733186524560,0.50923436,3634.6,3633.7,3.46217953]
[1733186524758,0.50923436,3634.6,3633.8,2.75191]
[1733186525324,0.8084,3634.5,3633.8,2.75191]
[1733186525871,0.55,3634.4,3633.8,2.75191]
[1733186526069,0.55,3634.4,3633.9,0.64661625]
[1733186526364,0.55,3634.4,3633.9,3.39840625]
[1733186526568,0.7719,3634.8,3634.3,2.75152]
[1733186526880,0.7998,3635.1,3634.4,2.65172892]
[1733186527175,0.7998,3635.1,3634.7,2.75123]